{"text_format":"3","workbook":"xlsx","n_sheets":3,"sheets":["התחלה","תקציב ומעקב אחר מתנות","נתונים"],"not_rendered":{"charts":1,"defined_names":1},"read":"whole","date_system":"1900"}

{"sheet":"התחלה","index":0,"n_rows":7,"n_cols":2,"rows_kept":7}
[null,"אודות התבנית"]
[null,"השתמש בתבנית זו כדי לרשום את רכישות המתנות שלך ולעקוב אחריהן ביחס לתקציב."]
[null,"הזן בטבלה את שמות בני המשפחה והחברים, פריטי מתנה, סכומים מתוקצבים ושהוצעו והערות, ובחר את חודש האירוע."]
[null,"תרשים המבט הכולל החודשי מתעדכן באופן אוטומטי."]
[null,"הערה: "]
[null,"הוראות נוספות סופקו בעמודה A בגיליון העבודה 'כלי מעקב ותקצוב מתנות'. טקסט זה הוסתר במכוון. כדי להסיר את הטקסט, בחר את עמודה A ולאחר מכן הקש DELETE. כדי לבטל את הסתרת הטקסט, בחר את עמודה A ולאחר מכן שנה את צבע הגופן."]
[null,"לקבלת מידע נוסף על הטבלה, הקש SHIFT ולאחר מכן F10 בתוך טבלה, בחר את האפשרות 'טבלה' ולאחר מכן בחר 'טקסט חלופי'."]

{"sheet":"תקציב ומעקב אחר מתנות","index":1,"n_rows":10,"n_cols":13,"rows_kept":10,"merged":[[0,1,0,4],[0,5,0,12],[1,1,1,2],[2,1,2,12],[3,1,3,3]]}
["צור תקציב מתנה וכלי מעקב אישי בגיליון עבודה זה. הכותרת של גיליון העבודה מופיעה בתא משמאל, והעצה מופיעה בתא F1. הוראות מועילות לגבי אופן השימוש בגיליון עבודה זה מופיעות בתאים שבעמודה זו.","תקציב ומעקב אחר מתנות",{"$nulls":3},"מלא כמה שתוכל בתחילת כל שנה חדשה. הזן שמות של בני משפחה וחברים, בחר אירוע למתנה, בחר חודש אירוע והקלד כמה ברצונך להוציא. כל אדם רשאי להופיע מספר פעמים בתוך הטבלה עבור כל אירוע אחר (יום הולדת, חג, מסיבה וכו')."]
["תווית 'מבט כולל חודשי' נמצאת בתא משמאל וההעצה בתא D2.","מבט כולל חודשי",null,"השתמש בגרף כדי לבחון את החודשים הקרובים כדי לתכנן מראש. רשום את הרכישות שלך כדי לעקוב אחריהן לפי התקציב שלך."]
["תרשים טורים עבור סכומים מתוקצבים עם שכבת-על של תרשים קו עבור הסכום שהושקע נמצא בתא משמאל.","תרשים טורים עבור סכומים מתוקצבים עם שכבת-על של תרשים קו עבור הסכום שהושקע נמצא בתא זה."]
["התווית 'תקציב מתנה וכלי מעקב' נמצאת בתא משמאל.","תקציב ומעקב אחר מתנות"]
["הזן פרטים בטבלה 'כלי מעקב של תקציב', החל מהתא שמשמאל.","מי מבצע","אירוע","חודש","סכום\nמתוקצב","סכום\nנוצל","מתנה","קישור למתנה","בחנות/\nמקוון","נרכש?","נעטף?","נשלח?","הערות"]
[null,"שם 1","ימי הולדת","יוני",{"v":50,"d":"₪ 50"},{"v":30,"d":"₪ 30"},"נעליים","מוכר","מקוון","כן","לא","לא","16/6, כרטיסים לסרט"]
[null,"שם 2","ימי נישואין","אפריל",{"v":20,"d":"₪ 20"},{"v":20,"d":"₪ 20"},"חתול","מוכר","בחנות","לא","לא","לא","הוא הזכיר שהוא אוהב כלבים"]
[null,"שם 3","חגים","יולי",{"v":50,"d":"₪ 50"},{"v":70,"d":"₪ 70"},"אוזניות","מוכר","מקוון","לא","לא","לא","דברים למעונות"]
[null,"שם 4","ימי הולדת","ינואר",{"v":20,"d":"₪ 20"},{"v":30,"d":"₪ 30"},"משחק","מוכר","בחנות","כן","כן","כן"]
[null,"שם 5","חתונות","יוני",{"v":100,"d":"₪ 100"},{"v":150,"d":"₪ 150"},"אגרטל בדולח","מוכר","בחנות","כן","כן","לא"]

{"sheet":"נתונים","index":2,"n_rows":13,"n_cols":8,"rows_kept":13,"hidden":true}
["אירועים",null,"תאריך","תאריך","הסכום שהוקצב\nימי הולדת","הסכום שהוקצב\nחגים","הסכום שהוקצב\nאחר","כמות שהושקעה"]
["ימי הולדת",null,"ינואר","ינו",{"$f":"SUMIFS(BudgetTracker[סכום\nמתוקצב],BudgetTracker[חודש],\"ינואר\",BudgetTracker[אירוע],\"ימי הולדת\")","v":{"v":20,"d":"₪ 20"}},{"$f":"SUMIFS(BudgetTracker[סכום\nמתוקצב],BudgetTracker[חודש],\"ינואר\",BudgetTracker[אירוע],\"חגים\")","v":{"v":0,"d":"₪ 0"}},{"$f":"SUMIFS(BudgetTracker[סכום\nמתוקצב],BudgetTracker[חודש],\"ינואר\",BudgetTracker[אירוע],\"<>חגים\",BudgetTracker[אירוע],\"<>ימי הולדת\")","v":{"v":0,"d":"₪ 0"}},{"$f":"SUMIFS(BudgetTracker[סכום\nנוצל],BudgetTracker[חודש],\"ינואר\")","v":{"v":30,"d":"₪ 30"}}]
["חגים",null,"פברואר","פבר",{"$f":"SUMIFS(BudgetTracker[סכום\nמתוקצב],BudgetTracker[חודש],\"פברואר\",BudgetTracker[אירוע],\"ימי הולדת\")","v":{"v":0,"d":"₪ 0"}},{"$f":"SUMIFS(BudgetTracker[סכום\nמתוקצב],BudgetTracker[חודש],\"פברואר\",BudgetTracker[אירוע],\"חגים\")","v":{"v":0,"d":"₪ 0"}},{"$f":"SUMIFS(BudgetTracker[סכום\nמתוקצב],BudgetTracker[חודש],\"פברואר\",BudgetTracker[אירוע],\"<>חגים\",BudgetTracker[אירוע],\"<>ימי הולדת\")","v":{"v":0,"d":"₪ 0"}},{"$f":"SUMIFS(BudgetTracker[סכום\nנוצל],BudgetTracker[חודש],\"פברואר\")","v":{"v":0,"d":"₪ 0"}}]
["ימי נישואין",null,"מרץ","מרץ",{"$f":"SUMIFS(BudgetTracker[סכום\nמתוקצב],BudgetTracker[חודש],\"מרץ\",BudgetTracker[אירוע],\"ימי הולדת\")","v":{"v":0,"d":"₪ 0"}},{"$f":"SUMIFS(BudgetTracker[סכום\nמתוקצב],BudgetTracker[חודש],\"מרץ\",BudgetTracker[אירוע],\"חגים\")","v":{"v":0,"d":"₪ 0"}},{"$f":"SUMIFS(BudgetTracker[סכום\nמתוקצב],BudgetTracker[חודש],\"מרץ\",BudgetTracker[אירוע],\"<>חגים\",BudgetTracker[אירוע],\"<>ימי הולדת\")","v":{"v":0,"d":"₪ 0"}},{"$f":"SUMIFS(BudgetTracker[סכום\nנוצל],BudgetTracker[חודש],\"מרץ\")","v":{"v":0,"d":"₪ 0"}}]
["חתונות",null,"אפריל","אפר",{"$f":"SUMIFS(BudgetTracker[סכום\nמתוקצב],BudgetTracker[חודש],\"אפריל\",BudgetTracker[אירוע],\"ימי הולדת\")","v":{"v":0,"d":"₪ 0"}},{"$f":"SUMIFS(BudgetTracker[סכום\nמתוקצב],BudgetTracker[חודש],\"אפריל\",BudgetTracker[אירוע],\"חגים\")","v":{"v":0,"d":"₪ 0"}},{"$f":"SUMIFS(BudgetTracker[סכום\nמתוקצב],BudgetTracker[חודש],\"אפריל\",BudgetTracker[אירוע],\"<>חגים\",BudgetTracker[אירוע],\"<>ימי הולדת\")","v":{"v":20,"d":"₪ 20"}},{"$f":"SUMIFS(BudgetTracker[סכום\nנוצל],BudgetTracker[חודש],\"אפריל\")","v":{"v":20,"d":"₪ 20"}}]
["מסיבות רווקות",null,"מאי","מאי",{"$f":"SUMIFS(BudgetTracker[סכום\nמתוקצב],BudgetTracker[חודש],\"מאי\",BudgetTracker[אירוע],\"ימי הולדת\")","v":{"v":0,"d":"₪ 0"}},{"$f":"SUMIFS(BudgetTracker[סכום\nמתוקצב],BudgetTracker[חודש],\"מאי\",BudgetTracker[אירוע],\"חגים\")","v":{"v":0,"d":"₪ 0"}},{"$f":"SUMIFS(BudgetTracker[סכום\nמתוקצב],BudgetTracker[חודש],\"מאי\",BudgetTracker[אירוע],\"<>חגים\",BudgetTracker[אירוע],\"<>ימי הולדת\")","v":{"v":0,"d":"₪ 0"}},{"$f":"SUMIFS(BudgetTracker[סכום\nנוצל],BudgetTracker[חודש],\"מאי\")","v":{"v":0,"d":"₪ 0"}}]
["מסיבות לידה",null,"יוני","יונ",{"$f":"SUMIFS(BudgetTracker[סכום\nמתוקצב],BudgetTracker[חודש],\"יוני\",BudgetTracker[אירוע],\"ימי הולדת\")","v":{"v":50,"d":"₪ 50"}},{"$f":"SUMIFS(BudgetTracker[סכום\nמתוקצב],BudgetTracker[חודש],\"יוני\",BudgetTracker[אירוע],\"חגים\")","v":{"v":0,"d":"₪ 0"}},{"$f":"SUMIFS(BudgetTracker[סכום\nמתוקצב],BudgetTracker[חודש],\"יוני\",BudgetTracker[אירוע],\"<>חגים\",BudgetTracker[אירוע],\"<>ימי הולדת\")","v":{"v":100,"d":"₪ 100"}},{"$f":"SUMIFS(BudgetTracker[סכום\nנוצל],BudgetTracker[חודש],\"יוני\")","v":{"v":180,"d":"₪ 180"}}]
["טקסי סיום לימודים",null,"יולי","יול",{"$f":"SUMIFS(BudgetTracker[סכום\nמתוקצב],BudgetTracker[חודש],\"יולי\",BudgetTracker[אירוע],\"ימי הולדת\")","v":{"v":0,"d":"₪ 0"}},{"$f":"SUMIFS(BudgetTracker[סכום\nמתוקצב],BudgetTracker[חודש],\"יולי\",BudgetTracker[אירוע],\"חגים\")","v":{"v":50,"d":"₪ 50"}},{"$f":"SUMIFS(BudgetTracker[סכום\nמתוקצב],BudgetTracker[חודש],\"יולי\",BudgetTracker[אירוע],\"<>חגים\",BudgetTracker[אירוע],\"<>ימי הולדת\")","v":{"v":0,"d":"₪ 0"}},{"$f":"SUMIFS(BudgetTracker[סכום\nנוצל],BudgetTracker[חודש],\"יולי\")","v":{"v":70,"d":"₪ 70"}}]
["אחר",null,"אוגוסט","אוג",{"$f":"SUMIFS(BudgetTracker[סכום\nמתוקצב],BudgetTracker[חודש],\"אוגוסט\",BudgetTracker[אירוע],\"ימי הולדת\")","v":{"v":0,"d":"₪ 0"}},{"$f":"SUMIFS(BudgetTracker[סכום\nמתוקצב],BudgetTracker[חודש],\"אוגוסט\",BudgetTracker[אירוע],\"חגים\")","v":{"v":0,"d":"₪ 0"}},{"$f":"SUMIFS(BudgetTracker[סכום\nמתוקצב],BudgetTracker[חודש],\"אוגוסט\",BudgetTracker[אירוע],\"<>חגים\",BudgetTracker[אירוע],\"<>ימי הולדת\")","v":{"v":0,"d":"₪ 0"}},{"$f":"SUMIFS(BudgetTracker[סכום\nנוצל],BudgetTracker[חודש],\"אוגוסט\")","v":{"v":0,"d":"₪ 0"}}]
[null,null,"ספטמבר","ספט",{"$f":"SUMIFS(BudgetTracker[סכום\nמתוקצב],BudgetTracker[חודש],\"ספטמבר\",BudgetTracker[אירוע],\"ימי הולדת\")","v":{"v":0,"d":"₪ 0"}},{"$f":"SUMIFS(BudgetTracker[סכום\nמתוקצב],BudgetTracker[חודש],\"ספטמבר\",BudgetTracker[אירוע],\"חגים\")","v":{"v":0,"d":"₪ 0"}},{"$f":"SUMIFS(BudgetTracker[סכום\nמתוקצב],BudgetTracker[חודש],\"ספטמבר\",BudgetTracker[אירוע],\"<>חגים\",BudgetTracker[אירוע],\"<>ימי הולדת\")","v":{"v":0,"d":"₪ 0"}},{"$f":"SUMIFS(BudgetTracker[סכום\nנוצל],BudgetTracker[חודש],\"ספטמבר\")","v":{"v":0,"d":"₪ 0"}}]
[null,null,"אוקטובר","אוק",{"$f":"SUMIFS(BudgetTracker[סכום\nמתוקצב],BudgetTracker[חודש],\"אוקטובר\",BudgetTracker[אירוע],\"ימי הולדת\")","v":{"v":0,"d":"₪ 0"}},{"$f":"SUMIFS(BudgetTracker[סכום\nמתוקצב],BudgetTracker[חודש],\"אוקטובר\",BudgetTracker[אירוע],\"חגים\")","v":{"v":0,"d":"₪ 0"}},{"$f":"SUMIFS(BudgetTracker[סכום\nמתוקצב],BudgetTracker[חודש],\"אוקטובר\",BudgetTracker[אירוע],\"<>חגים\",BudgetTracker[אירוע],\"<>ימי הולדת\")","v":{"v":0,"d":"₪ 0"}},{"$f":"SUMIFS(BudgetTracker[סכום\nנוצל],BudgetTracker[חודש],\"אוקטובר\")","v":{"v":0,"d":"₪ 0"}}]
[null,null,"נובמבר","נוב",{"$f":"SUMIFS(BudgetTracker[סכום\nמתוקצב],BudgetTracker[חודש],\"נובמבר\",BudgetTracker[אירוע],\"ימי הולדת\")","v":{"v":0,"d":"₪ 0"}},{"$f":"SUMIFS(BudgetTracker[סכום\nמתוקצב],BudgetTracker[חודש],\"נובמבר\",BudgetTracker[אירוע],\"חגים\")","v":{"v":0,"d":"₪ 0"}},{"$f":"SUMIFS(BudgetTracker[סכום\nמתוקצב],BudgetTracker[חודש],\"נובמבר\",BudgetTracker[אירוע],\"<>חגים\",BudgetTracker[אירוע],\"<>ימי הולדת\")","v":{"v":0,"d":"₪ 0"}},{"$f":"SUMIFS(BudgetTracker[סכום\nנוצל],BudgetTracker[חודש],\"נובמבר\")","v":{"v":0,"d":"₪ 0"}}]
[null,null,"דצמבר","דצמ",{"$f":"SUMIFS(BudgetTracker[סכום\nמתוקצב],BudgetTracker[חודש],\"דצמבר\",BudgetTracker[אירוע],\"ימי הולדת\")","v":{"v":0,"d":"₪ 0"}},{"$f":"SUMIFS(BudgetTracker[סכום\nמתוקצב],BudgetTracker[חודש],\"דצמבר\",BudgetTracker[אירוע],\"חגים\")","v":{"v":0,"d":"₪ 0"}},{"$f":"SUMIFS(BudgetTracker[סכום\nמתוקצב],BudgetTracker[חודש],\"דצמבר\",BudgetTracker[אירוע],\"<>חגים\",BudgetTracker[אירוע],\"<>ימי הולדת\")","v":{"v":0,"d":"₪ 0"}},{"$f":"SUMIFS(BudgetTracker[סכום\nנוצל],BudgetTracker[חודש],\"דצמבר\")","v":{"v":0,"d":"₪ 0"}}]